[Event "CCT Chessable Masters Play-In 2025"]
[Site "Online"]
[Date "2025.02.17"]
[Round "1.78"]
[White "Zhukova, Natalia"]
[Black "Banusz, Tamas"]
[Result "0-1"]
[ECO "D35"]
[WhiteElo "2306"]
[BlackElo "2582"]
[PlyCount "102"]
[EventDate "2025.02.13"]
[EventType "swiss"]
[EventCountry "NET"]
[TimeControl "600"]
[WhiteClock "0:00:23"]
[BlackClock "0:02:17"]

1. c4 {[%emt 0:00:15]} e6 {[%emt 0:00:07]} 2. Nc3 {[%emt 0:00:05]} d5 {[%emt 0:00:01]} 3. d4 {[%emt 0:00:01]} Nf6 {[%emt 0:00:01]} 4. cxd5 {[%emt 0:00:02]} exd5 {[%emt 0:00:01]} 5. Bg5 {[%emt 0:00:01]} c6 {[%emt 0:00:05]} 6. e3 {[%emt 0:00:02]} Bf5 {[%emt 0:00:05]} 7. Qf3 {[%emt 0:00:04]} Bg6 {[%emt 0:00:01]} 8. Bxf6 {[%emt 0:00:01]} Qxf6 {[%emt 0:00:01]} 9. Qxf6 {[%emt 0:00:03]} gxf6 {[%emt 0:00:00]} 10. h4 {[%emt 0:00:05]} a5 {[%emt 0:00:06]} 11. Nce2 {[%emt 0:00:09]} Bb4+ {[%emt 0:00:09]} 12. Kd1 {[%emt 0:00:02]} a4 {[%emt 0:00:13]} 13. a3 {[%emt 0:00:07]} Bd6 {[%emt 0:00:08]} 14. Ng3 {[%emt 0:00:34]} Bxg3 {[%emt 0:00:11]} 15. fxg3 {[%emt 0:00:00]} Nd7 {[%emt 0:00:05]} 16. Nh3 {[%emt 0:00:35]} Ke7 {[%emt 0:00:30]} 17. Be2 {[%emt 0:00:20]} b5 {[%emt 0:00:29]} 18. Rc1 {[%emt 0:00:18]} Rac8 {[%emt 0:00:12]} 19. Nf4 {[%emt 0:00:02]} Nb6 {[%emt 0:00:11]} 20. Kd2 {[%emt 0:00:18]} Nc4+ {[%emt 0:00:03]} 21. Bxc4 {[%emt 0:01:14]} bxc4 {[%emt 0:00:00]} 22. Nxg6+ {[%emt 0:00:01]} hxg6 {[%emt 0:00:11]} 23. e4 {[%emt 0:00:01]} Rb8 {[%emt 0:00:07]} 24. Rc2 {[%emt 0:00:10]} Rb3 {[%emt 0:00:03]} 25. Re1 {[%emt 0:00:05]} Kd7 {[%emt 0:00:19]} 26. Re3 {[%emt 0:00:43]} Rhb8 {[%emt 0:00:14]} 27. exd5 {[%emt 0:00:44]} cxd5 {[%emt 0:00:04]} 28. Rf3 {[%emt 0:00:25]} f5 {[%emt 0:00:08]} 29. g4 {[%emt 0:00:15]} Rxf3 {[%emt 0:00:26]} 30. gxf3 {[%emt 0:00:02]} fxg4 {[%emt 0:00:06]} 31. fxg4 {[%emt 0:00:01]} Rh8 {[%emt 0:00:01]} 32. h5 {[%emt 0:00:11]} gxh5 {[%emt 0:00:04]} 33. gxh5 {[%emt 0:00:00]} Rxh5 {[%emt 0:00:01]} 34. Kc3 {[%emt 0:00:00]} Rh3+ {[%emt 0:00:10]} 35. Kb4 {[%emt 0:00:01]} Kd6 {[%emt 0:00:27]} 36. Rf2 {[%emt 0:00:04]} Rb3+ {[%emt 0:00:06]} 37. Kxa4 {[%emt 0:00:03]} Rd3 {[%emt 0:00:16]} 38. Rxf7 {[%emt 0:00:11]} Rxd4 {[%emt 0:00:03]} 39. Rf6+ {[%emt 0:00:15]} Ke5 {[%emt 0:00:12]} 40. Rf8 {[%emt 0:00:02]} Rd2 {[%emt 0:00:11]} 41. Kb4 {[%emt 0:00:16]} Rxb2+ {[%emt 0:01:09]} 42. Kc5 {[%emt 0:00:02]} Rd2 {[%emt 0:00:01]} 43. Re8+ {[%emt 0:00:00]} Kf4 {[%emt 0:00:01]} 44. Kb4 {[%emt 0:00:19]} Rd1 {[%emt 0:00:25]} 45. a4 {[%emt 0:00:05]} Rb1+ {[%emt 0:00:02]} 46. Kc3 {[%emt 0:00:12]} Rb3+ {[%emt 0:00:03]} 47. Kd2 {[%emt 0:00:36]} Ra3 {[%emt 0:00:05]} 48. Ra8 {[%emt 0:00:17]} Ke4 {[%emt 0:00:01]} 49. a5 {[%emt 0:00:00]} Kd4 {[%emt 0:00:02]} 50. a6 {[%emt 0:00:02]} Ra2+ {[%emt 0:00:01]} 51. Kd1 {[%emt 0:00:16]} Kd3 {[%emt 0:00:05]} 0-1

[Event "CCT Chessable Masters Play-In 2025"]
[Site "Online"]
[Date "2025.02.17"]
[Round "1.79"]
[White "Ponomariov, Ruslan"]
[Black "Yang, Kaiqi"]
[Result "1-0"]
[ECO "B50"]
[WhiteElo "2628"]
[BlackElo "2481"]
[PlyCount "93"]
[EventDate "2025.02.13"]
[EventType "swiss"]
[EventCountry "NET"]
[TimeControl "600"]
[WhiteClock "0:02:13"]

1. e4 {[%emt 0:00:03]} c5 {[%emt 0:00:03]} 2. Nf3 {[%emt 0:00:01]} d6 {[%emt 0:00:01]} 3. Nc3 {[%emt 0:00:03]} Nf6 {[%emt 0:00:07]} 4. Bc4 {[%emt 0:00:02]} e6 {[%emt 0:00:03]} 5. d4 {[%emt 0:00:03]} cxd4 {[%emt 0:00:01]} 6. Qxd4 {[%emt 0:00:01]} Nc6 {[%emt 0:00:02]} 7. Qd3 {[%emt 0:00:01]} Be7 {[%emt 0:00:04]} 8. Bf4 {[%emt 0:00:03]} a6 {[%emt 0:00:06]} 9. O-O-O {[%emt 0:00:03]} Ng4 {[%emt 0:00:10]} 10. Qe2 {[%emt 0:00:09]} Qc7 {[%emt 0:00:35]} 11. Bb3 {[%emt 0:00:12]} O-O {[%emt 0:00:14]} 12. Bg3 {[%emt 0:00:33]} b5 {[%emt 0:00:19]} 13. Nd4 {[%emt 0:00:02]} Nxd4 {[%emt 0:00:32]} 14. Rxd4 {[%emt 0:00:04]} Ne5 {[%emt 0:00:05]} 15. Rhd1 {[%emt 0:00:02]} Bb7 {[%emt 0:00:43]} 16. f4 {[%emt 0:00:18]} Nc6 {[%emt 0:00:11]} 17. R4d3 {[%emt 0:00:01]} Nb4 {[%emt 0:01:16]} 18. Rf3 {[%emt 0:00:18]} a5 {[%emt 0:00:50]} 19. Nxb5 {[%emt 0:00:15]} Qc6 {[%emt 0:00:18]} 20. Rd4 {[%emt 0:02:51]} a4 {[%emt 0:01:16]} 21. Rxb4 {[%emt 0:00:01]} axb3 {[%emt 0:00:05]} 22. a3 {[%emt 0:00:01]} bxc2 {[%emt 0:00:34]} 23. Rc3 {[%emt 0:00:08]} Qa6 {[%emt 0:00:15]} 24. Qxc2 {[%emt 0:00:12]} Rac8 {[%emt 0:00:05]} 25. Nc7 {[%emt 0:00:07]} Qf1+ {[%emt 0:01:08]} 26. Qd1 {[%emt 0:00:02]} Qxg2 {[%emt 0:00:01]} 27. Rxb7 {[%emt 0:00:04]} Qxe4 {[%emt 0:00:22]} 28. Rb4 {[%emt 0:00:02]} Qf5 {[%emt 0:00:05]} 29. Qc2 {[%emt 0:00:11]} Qh3 {[%emt 0:00:07]} 30. Rbc4 {[%emt 0:00:10]} Bf6 {[%emt 0:00:02]} 31. Rd3 {[%emt 0:00:21]} d5 {[%emt 0:00:02]} 32. Rc6 {[%emt 0:00:01]} Qf1+ {[%emt 0:00:03]} 33. Rd1 {[%emt 0:00:02]} Qf3 {[%emt 0:00:02]} 34. Qd3 {[%emt 0:00:33]} Qg4 {[%emt 0:00:02]} 35. Rd2 {[%emt 0:00:06]} Rb8 {[%emt 0:00:01]} 36. Na6 {[%emt 0:00:05]} Rb7 {[%emt 0:00:01]} 37. Nc5 {[%emt 0:00:02]} Rbb8 {[%emt 0:00:01]} 38. Nd7 {[%emt 0:00:01]} Rfc8 {[%emt 0:00:01]} 39. Nxf6+ {[%emt 0:00:03]} gxf6 {[%emt 0:00:01]} 40. Rxc8+ {[%emt 0:00:01]} Rxc8+ {[%emt 0:00:00]} 41. Kb1 {[%emt 0:00:01]} Rc4 {[%emt 0:00:01]} 42. Rc2 {[%emt 0:00:08]} Re4 {[%emt 0:00:01]} 43. Ka2 {[%emt 0:00:08]} Qf5 {[%emt 0:00:00]} 44. Rg2 {[%emt 0:00:07]} Kf8 {[%emt 0:00:01]} 45. Qc2 {[%emt 0:00:03]} Rc4 {[%emt 0:00:03]} 46. Qxf5 {[%emt 0:00:01]} exf5 47. Rd2 {[%emt 0:00:01]} 1-0

[Event "CCT Chessable Masters Play-In 2025"]
[Site "Online"]
[Date "2025.02.17"]
[Round "1.80"]
[White "Mikhalevski, Victor"]
[Black "Kozak, Adam"]
[Result "0-1"]
[ECO "A35"]
[WhiteElo "2506"]
[BlackElo "2601"]
[PlyCount "110"]
[EventDate "2025.02.13"]
[EventType "swiss"]
[EventCountry "NET"]
[TimeControl "600"]
[BlackClock "0:00:06"]

1. Nf3 {[%emt 0:00:03]} c5 {[%emt 0:00:02]} 2. c4 {[%emt 0:00:05]} Nc6 {[%emt 0:00:03]} 3. Nc3 {[%emt 0:00:02]} g6 {[%emt 0:00:01]} 4. e3 {[%emt 0:00:02]} Bg7 {[%emt 0:00:01]} 5. d4 {[%emt 0:00:01]} d6 {[%emt 0:00:01]} 6. Be2 {[%emt 0:00:05]} e6 {[%emt 0:00:03]} 7. O-O {[%emt 0:00:04]} cxd4 {[%emt 0:00:03]} 8. exd4 {[%emt 0:00:07]} d5 {[%emt 0:00:01]} 9. Bg5 {[%emt 0:00:20]} Nge7 {[%emt 0:00:03]} 10. Re1 {[%emt 0:00:14]} O-O {[%emt 0:00:02]} 11. cxd5 {[%emt 0:00:03]} exd5 {[%emt 0:00:01]} 12. Bb5 {[%emt 0:00:05]} f6 {[%emt 0:00:07]} 13. Bf4 {[%emt 0:00:16]} a6 {[%emt 0:00:22]} 14. Bf1 {[%emt 0:00:52]} g5 {[%emt 0:00:16]} 15. Be3 {[%emt 0:00:18]} b5 {[%emt 0:01:19]} 16. Rc1 {[%emt 0:00:07]} Bf5 {[%emt 0:00:16]} 17. Bd3 {[%emt 0:00:15]} Qd7 {[%emt 0:00:32]} 18. h3 {[%emt 0:00:18]} Rac8 {[%emt 0:00:03]} 19. a4 {[%emt 0:00:54]} Bxd3 {[%emt 0:00:20]} 20. Qxd3 {[%emt 0:00:02]} Nb4 {[%emt 0:00:01]} 21. Qd1 {[%emt 0:00:09]} Kh8 {[%emt 0:00:39]} 22. Ra1 {[%emt 0:00:08]} Rb8 {[%emt 0:01:14]} 23. axb5 {[%emt 0:00:03]} axb5 {[%emt 0:00:01]} 24. Qb3 {[%emt 0:00:34]} Nbc6 {[%emt 0:00:02]} 25. Ra6 {[%emt 0:00:12]} h6 {[%emt 0:00:05]} 26. Bd2 {[%emt 0:00:17]} Rfd8 {[%emt 0:00:06]} 27. Raa1 {[%emt 0:00:36]} Nf5 {[%emt 0:00:04]} 28. Ne2 {[%emt 0:00:10]} Nce7 {[%emt 0:00:08]} 29. Qd3 {[%emt 0:00:05]} Nd6 {[%emt 0:00:09]} 30. Ng3 {[%emt 0:00:11]} Nef5 {[%emt 0:00:07]} 31. Nxf5 {[%emt 0:00:13]} Nxf5 {[%emt 0:00:00]} 32. Bb4 {[%emt 0:00:05]} Re8 {[%emt 0:00:06]} 33. Bc5 {[%emt 0:00:04]} h5 {[%emt 0:00:21]} 34. Ra7 {[%emt 0:00:07]} Rxe1+ {[%emt 0:00:02]} 35. Nxe1 {[%emt 0:00:01]} Qe6 {[%emt 0:00:03]} 36. Nc2 {[%emt 0:00:06]} Re8 {[%emt 0:00:49]} 37. Qxb5 {[%emt 0:00:16]} Qe4 {[%emt 0:00:04]} 38. Ra1 {[%emt 0:00:12]} Rg8 {[%emt 0:00:37]} 39. Qb3 {[%emt 0:00:05]} Nh4 {[%emt 0:00:03]} 40. Ne3 {[%emt 0:00:10]} Rd8 {[%emt 0:00:11]} 41. Qc2 {[%emt 0:00:07]} Qe6 {[%emt 0:00:03]} 42. Qd1 {[%emt 0:00:09]} g4 {[%emt 0:00:08]} 43. hxg4 {[%emt 0:00:05]} Bh6 {[%emt 0:00:00]} 44. Ra3 {[%emt 0:00:09]} Rg8 {[%emt 0:00:02]} 45. g3 {[%emt 0:00:08]} hxg4 {[%emt 0:00:28]} 46. gxh4 {[%emt 0:00:11]} g3 {[%emt 0:00:01]} 47. Qh5 {[%emt 0:00:03]} f5 {[%emt 0:00:19]} 48. Kf1 {[%emt 0:00:24]} gxf2 {[%emt 0:00:13]} 49. Kxf2 {[%emt 0:00:08]} Rg6 {[%emt 0:00:04]} 50. Qf3 {[%emt 0:00:23]} f4 {[%emt 0:00:01]} 51. Nxd5 {[%emt 0:00:05]} Rg3 {[%emt 0:00:01]} 52. Ra8+ {[%emt 0:00:04]} Kh7 {[%emt 0:00:01]} 53. Ra7+ {[%emt 0:00:01]} Kh8 {[%emt 0:00:01]} 54. Qh5 {[%emt 0:00:03]} Rg8 {[%emt 0:00:03]} 55. Be7 Qe3+ {[%emt 0:00:01]} 0-1

[Event "CCT Chessable Masters Play-In 2025"]
[Site "Online"]
[Date "2025.02.17"]
[Round "1.81"]
[White "Vokhidov, Shamsiddin"]
[Black "Zarnicki, Pablo"]
[Result "1-0"]
[ECO "B45"]
[WhiteElo "2670"]
[BlackElo "2514"]
[PlyCount "99"]
[EventDate "2025.02.13"]
[EventType "swiss"]
[EventCountry "NET"]
[TimeControl "600"]
[WhiteClock "0:04:20"]
[BlackClock "0:02:06"]

1. e4 {[%emt 0:00:01]} c5 {[%emt 0:00:06]} 2. Nf3 {[%emt 0:00:02]} e6 {[%emt 0:00:04]} 3. d4 {[%emt 0:00:02]} cxd4 {[%emt 0:00:01]} 4. Nxd4 {[%emt 0:00:00]} Nf6 {[%emt 0:00:01]} 5. Nc3 {[%emt 0:00:01]} Nc6 {[%emt 0:00:01]} 6. a3 {[%emt 0:00:06]} d6 {[%emt 0:00:12]} 7. Be3 {[%emt 0:00:02]} d5 {[%emt 0:00:10]} 8. Bb5 {[%emt 0:00:06]} Bd7 {[%emt 0:00:02]} 9. exd5 {[%emt 0:00:03]} Nxd5 {[%emt 0:00:02]} 10. Nxd5 {[%emt 0:00:03]} exd5 {[%emt 0:00:00]} 11. Qf3 {[%emt 0:00:43]} Nxd4 {[%emt 0:00:33]} 12. Bxd7+ {[%emt 0:00:02]} Qxd7 {[%emt 0:00:02]} 13. Bxd4 {[%emt 0:00:00]} Qe6+ {[%emt 0:00:16]} 14. Kd2 {[%emt 0:00:07]} O-O-O {[%emt 0:00:19]} 15. Rae1 {[%emt 0:00:09]} Qh6+ {[%emt 0:00:11]} 16. Kd1 {[%emt 0:00:05]} Qg6 {[%emt 0:00:10]} 17. h4 {[%emt 0:00:22]} h5 {[%emt 0:00:12]} 18. Re5 {[%emt 0:00:11]} Kb8 {[%emt 0:00:29]} 19. Rhe1 {[%emt 0:00:16]} Qg4 {[%emt 0:01:25]} 20. Qxg4 {[%emt 0:00:13]} hxg4 {[%emt 0:00:00]} 21. Re8 {[%emt 0:00:24]} Kc8 {[%emt 0:00:27]} 22. Bxa7 {[%emt 0:00:09]} Bd6 {[%emt 0:00:26]} 23. Rxd8+ {[%emt 0:00:08]} Kxd8 {[%emt 0:00:01]} 24. g3 {[%emt 0:00:01]} Kd7 {[%emt 0:00:12]} 25. Bd4 {[%emt 0:00:02]} f6 {[%emt 0:00:01]} 26. Kd2 {[%emt 0:00:02]} Rh5 {[%emt 0:00:05]} 27. Re3 {[%emt 0:00:04]} Rh8 {[%emt 0:00:23]} 28. Rb3 {[%emt 0:00:05]} Kc7 {[%emt 0:00:01]} 29. a4 {[%emt 0:00:20]} Ra8 {[%emt 0:00:06]} 30. a5 {[%emt 0:00:04]} Kc6 {[%emt 0:00:04]} 31. Rb6+ {[%emt 0:00:04]} Kc7 {[%emt 0:00:01]} 32. b4 {[%emt 0:00:09]} Ra6 {[%emt 0:00:20]} 33. Kd3 {[%emt 0:00:22]} Rxb6 {[%emt 0:00:04]} 34. Bxb6+ {[%emt 0:00:00]} Kc6 {[%emt 0:00:00]} 35. c3 {[%emt 0:00:02]} g6 {[%emt 0:00:05]} 36. Be3 {[%emt 0:00:14]} f5 {[%emt 0:00:01]} 37. Bf4 {[%emt 0:00:04]} Bf8 {[%emt 0:00:07]} 38. Kd4 {[%emt 0:00:02]} Bg7+ {[%emt 0:00:01]} 39. Be5 {[%emt 0:00:02]} Bh6 {[%emt 0:00:01]} 40. c4 {[%emt 0:00:02]} dxc4 {[%emt 0:00:02]} 41. Kxc4 {[%emt 0:00:00]} Bd2 {[%emt 0:00:09]} 42. b5+ {[%emt 0:00:04]} Kd7 {[%emt 0:00:01]} 43. Bc3 {[%emt 0:00:19]} Bc1 {[%emt 0:00:01]} 44. Kd5 {[%emt 0:00:02]} Bh6 {[%emt 0:00:09]} 45. Be5 {[%emt 0:00:08]} Kc8 {[%emt 0:00:33]} 46. Ke6 {[%emt 0:00:05]} Bd2 {[%emt 0:00:01]} 47. a6 {[%emt 0:00:03]} bxa6 {[%emt 0:00:01]} 48. bxa6 {[%emt 0:00:00]} Be1 {[%emt 0:00:03]} 49. Kf6 {[%emt 0:00:04]} Bxf2 {[%emt 0:00:12]} 50. Kxg6 {[%emt 0:00:01]} 1-0

[Event "CCT Chessable Masters Play-In 2025"]
[Site "Online"]
[Date "2025.02.17"]
[Round "1.82"]
[White "Pultinevicius, Paulius"]
[Black "Chigaev, Maksim"]
[Result "0-1"]
[ECO "D02"]
[WhiteElo "2566"]
[BlackElo "2632"]
[PlyCount "158"]
[EventDate "2025.02.13"]
[EventType "swiss"]
[EventCountry "NET"]
[TimeControl "600"]
[BlackClock "0:00:03"]

1. d4 {[%emt 0:00:10]} Nf6 {[%emt 0:00:03]} 2. Nf3 {[%emt 0:00:08]} d5 {[%emt 0:00:12]} 3. g3 {[%emt 0:00:04]} Bf5 {[%emt 0:00:08]} 4. Bg2 {[%emt 0:00:04]} e6 {[%emt 0:00:01]} 5. O-O {[%emt 0:00:02]} h6 {[%emt 0:00:03]} 6. c4 {[%emt 0:00:04]} Be7 {[%emt 0:00:02]} 7. Nc3 {[%emt 0:00:03]} O-O {[%emt 0:00:06]} 8. Qb3 {[%emt 0:00:03]} Nc6 {[%emt 0:00:03]} 9. cxd5 {[%emt 0:00:05]} exd5 {[%emt 0:00:01]} 10. Bf4 {[%emt 0:00:09]} Rb8 {[%emt 0:00:24]} 11. Rac1 {[%emt 0:00:04]} a6 {[%emt 0:00:09]} 12. Rfd1 {[%emt 0:00:31]} Be6 {[%emt 0:00:09]} 13. Ne5 {[%emt 0:00:13]} Na7 {[%emt 0:01:13]} 14. h3 {[%emt 0:01:28]} c6 {[%emt 0:00:14]} 15. g4 {[%emt 0:00:19]} Nb5 {[%emt 0:00:11]} 16. a4 {[%emt 0:00:33]} Nd6 {[%emt 0:00:03]} 17. Qc2 {[%emt 0:00:00]} Re8 {[%emt 0:00:02]} 18. b4 {[%emt 0:00:03]} Rc8 {[%emt 0:00:03]} 19. Rb1 {[%emt 0:00:15]} Nd7 {[%emt 0:00:05]} 20. Qd3 {[%emt 0:00:12]} Bf8 {[%emt 0:00:34]} 21. b5 {[%emt 0:00:18]} axb5 {[%emt 0:00:07]} 22. axb5 {[%emt 0:00:01]} Nb6 {[%emt 0:00:46]} 23. bxc6 {[%emt 0:00:09]} bxc6 {[%emt 0:00:00]} 24. Qg3 {[%emt 0:00:32]} Nbc4 {[%emt 0:00:09]} 25. Nd3 {[%emt 0:00:12]} Ne4 {[%emt 0:00:27]} 26. Nxe4 {[%emt 0:00:16]} dxe4 {[%emt 0:00:00]} 27. Ne5 {[%emt 0:00:30]} Nd6 {[%emt 0:00:08]} 28. Nxc6 {[%emt 0:00:15]} Rxc6 {[%emt 0:00:06]} 29. d5 {[%emt 0:00:00]} Bxd5 {[%emt 0:00:18]} 30. Rxd5 {[%emt 0:00:02]} Qf6 {[%emt 0:00:09]} 31. Rbd1 {[%emt 0:00:12]} Nc4 {[%emt 0:00:07]} 32. R1d4 {[%emt 0:00:12]} e3 {[%emt 0:00:13]} 33. fxe3 {[%emt 0:00:10]} g5 {[%emt 0:00:01]} 34. Rf5 {[%emt 0:00:09]} Qg6 {[%emt 0:01:09]} 35. Bxc6 {[%emt 0:01:33]} Qxc6 {[%emt 0:00:01]} 36. Be5 {[%emt 0:00:26]} Ra8 {[%emt 0:00:48]} 37. Qf3 {[%emt 0:00:02]} Ra1+ {[%emt 0:00:44]} 38. Kf2 {[%emt 0:00:02]} Nxe5 {[%emt 0:00:15]} 39. Rxe5 {[%emt 0:00:02]} Qc1 {[%emt 0:00:00]} 40. Qg2 {[%emt 0:00:02]} Qe1+ {[%emt 0:00:12]} 41. Kf3 {[%emt 0:00:01]} Ra6 {[%emt 0:00:01]} 42. Rd8 {[%emt 0:00:02]} Kg7 {[%emt 0:00:04]} 43. Rf5 {[%emt 0:00:02]} Re6 {[%emt 0:00:03]} 44. Qf2 {[%emt 0:00:01]} Qc1 {[%emt 0:00:07]} 45. Rd7 {[%emt 0:00:02]} Qc6+ {[%emt 0:00:01]} 46. Kg3 {[%emt 0:00:01]} Qxd7 {[%emt 0:00:01]} 47. e4 {[%emt 0:00:00]} Bd6+ {[%emt 0:00:00]} 48. Kg2 {[%emt 0:00:01]} Rxe4 {[%emt 0:00:02]} 49. Qf3 {[%emt 0:00:02]} Rf4 {[%emt 0:00:01]} 50. Qc3+ {[%emt 0:00:00]} Kg8 {[%emt 0:00:01]} 51. Rd5 {[%emt 0:00:01]} Qe6 {[%emt 0:00:02]} 52. Qd3 {[%emt 0:00:01]} Bf8 {[%emt 0:00:01]} 53. Kg3 {[%emt 0:00:02]} Re4 {[%emt 0:00:01]} 54. Kf3 {[%emt 0:00:02]} Re5 {[%emt 0:00:00]} 55. Rxe5 {[%emt 0:00:01]} Qxe5 {[%emt 0:00:00]} 56. e4 {[%emt 0:00:00]} Qe7 {[%emt 0:00:01]} 57. Kg2 {[%emt 0:00:01]} Qf6 {[%emt 0:00:00]} 58. Qf3 {[%emt 0:00:00]} Qb2+ {[%emt 0:00:00]} 59. Kg3 {[%emt 0:00:00]} Qg7 {[%emt 0:00:01]} 60. Kg2 {[%emt 0:00:00]} Qg6 {[%emt 0:00:00]} 61. Qf5 {[%emt 0:00:01]} Qe6 {[%emt 0:00:00]} 62. Kf3 {[%emt 0:00:00]} Qxf5+ {[%emt 0:00:00]} 63. exf5 {[%emt 0:00:00]} f6 {[%emt 0:00:01]} 64. Ke4 {[%emt 0:00:00]} Kf7 {[%emt 0:00:00]} 65. Kd5 {[%emt 0:00:00]} Be7 {[%emt 0:00:00]} 66. Kc6 {[%emt 0:00:01]} Bd8 {[%emt 0:00:00]} 67. Kd5 {[%emt 0:00:00]} Ba5 {[%emt 0:00:01]} 68. Kc6 {[%emt 0:00:00]} Bd2 {[%emt 0:00:00]} 69. Kd7 {[%emt 0:00:00]} Bf4 {[%emt 0:00:00]} 70. Kc6 {[%emt 0:00:00]} Bg3 {[%emt 0:00:00]} 71. Kd7 {[%emt 0:00:00]} Bh4 {[%emt 0:00:00]} 72. Kd8 {[%emt 0:00:00]} h5 {[%emt 0:00:00]} 73. Kd7 {[%emt 0:00:01]} hxg4 {[%emt 0:00:00]} 74. Kd8 {[%emt 0:00:00]} Bg3 {[%emt 0:00:01]} 75. Kd7 {[%emt 0:00:00]} gxh3 {[%emt 0:00:00]} 76. Kd8 {[%emt 0:00:02]} h2 {[%emt 0:00:00]} 77. Kd7 {[%emt 0:00:00]} h1=Q {[%emt 0:00:00]} 78. Kc8 {[%emt 0:00:00]} Qe4 {[%emt 0:00:00]} 79. Kd7 Qxf5+ {[%emt 0:00:01]} 0-1

[Event "CCT Chessable Masters Play-In 2025"]
[Site "Online"]
[Date "2025.02.17"]
[Round "1.83"]
[White "Sindarov, Javokhir"]
[Black "Gholami Orimi, Mahdi"]
[Result "1-0"]
[ECO "C58"]
[WhiteElo "2700"]
[BlackElo "2509"]
[PlyCount "95"]
[EventDate "2025.02.13"]
[EventType "swiss"]
[EventCountry "NET"]
[TimeControl "600"]
[WhiteClock "0:03:25"]
[BlackClock "0:00:51"]

1. e4 {[%emt 0:00:05]} e5 {[%emt 0:00:28]} 2. Nf3 {[%emt 0:00:01]} Nc6 {[%emt 0:00:01]} 3. Bc4 {[%emt 0:00:01]} Nf6 {[%emt 0:00:02]} 4. Ng5 {[%emt 0:00:04]} d5 {[%emt 0:00:01]} 5. exd5 {[%emt 0:00:00]} Na5 {[%emt 0:00:01]} 6. Bb5+ {[%emt 0:00:00]} c6 {[%emt 0:00:00]} 7. dxc6 {[%emt 0:00:01]} bxc6 {[%emt 0:00:01]} 8. Bd3 {[%emt 0:00:00]} Nd5 {[%emt 0:00:01]} 9. Nf3 {[%emt 0:00:01]} Bd6 {[%emt 0:00:01]} 10. O-O {[%emt 0:00:01]} Nf4 {[%emt 0:00:03]} 11. Nc3 {[%emt 0:00:01]} O-O {[%emt 0:00:03]} 12. Be2 {[%emt 0:00:04]} f5 {[%emt 0:00:33]} 13. d3 {[%emt 0:00:02]} g5 {[%emt 0:00:10]} 14. d4 {[%emt 0:01:03]} e4 {[%emt 0:00:21]} 15. Ne5 {[%emt 0:00:01]} Be6 {[%emt 0:00:59]} 16. g3 {[%emt 0:00:43]} Nxe2+ {[%emt 0:01:04]} 17. Nxe2 {[%emt 0:00:34]} c5 {[%emt 0:00:38]} 18. d5 {[%emt 0:00:08]} Bxe5 {[%emt 0:01:10]} 19. dxe6 {[%emt 0:00:01]} h6 {[%emt 0:00:43]} 20. Nc3 {[%emt 0:00:25]} Re8 {[%emt 0:00:24]} 21. Qd7 {[%emt 0:01:22]} Qxd7 {[%emt 0:00:16]} 22. exd7 {[%emt 0:00:00]} Re7 {[%emt 0:00:01]} 23. Rd1 {[%emt 0:00:00]} Rd8 {[%emt 0:00:01]} 24. Rd5 {[%emt 0:00:01]} Nb7 {[%emt 0:00:53]} 25. Be3 {[%emt 0:00:02]} f4 {[%emt 0:00:07]} 26. gxf4 {[%emt 0:00:55]} gxf4 {[%emt 0:00:01]} 27. Rxe5 {[%emt 0:00:00]} Rxe5 {[%emt 0:00:05]} 28. Bxf4 {[%emt 0:00:00]} Rf5 {[%emt 0:00:07]} 29. Bxh6 {[%emt 0:00:01]} Rxd7 {[%emt 0:00:01]} 30. Nxe4 {[%emt 0:00:02]} c4 {[%emt 0:00:15]} 31. Be3 {[%emt 0:00:04]} Nd6 {[%emt 0:00:05]} 32. Rd1 {[%emt 0:00:09]} Rg7+ {[%emt 0:00:01]} 33. Ng3 {[%emt 0:00:01]} Ne4 {[%emt 0:00:04]} 34. Rd8+ {[%emt 0:00:07]} Kh7 {[%emt 0:00:00]} 35. Rd4 {[%emt 0:00:02]} Nxg3 {[%emt 0:00:14]} 36. hxg3 {[%emt 0:00:00]} Rc7 {[%emt 0:00:01]} 37. b3 {[%emt 0:00:09]} cxb3 {[%emt 0:00:01]} 38. cxb3 {[%emt 0:00:01]} Rc2 {[%emt 0:00:02]} 39. Rd7+ {[%emt 0:00:02]} Kg6 {[%emt 0:00:00]} 40. Rxa7 {[%emt 0:00:01]} Rd5 {[%emt 0:00:02]} 41. Kg2 {[%emt 0:00:04]} Kf5 {[%emt 0:00:00]} 42. Kf3 {[%emt 0:00:01]} Rd1 {[%emt 0:00:01]} 43. g4+ {[%emt 0:00:06]} Kg6 {[%emt 0:00:01]} 44. Ra6+ {[%emt 0:00:01]} Kf7 {[%emt 0:00:01]} 45. g5 {[%emt 0:00:01]} Rg1 {[%emt 0:00:01]} 46. a4 {[%emt 0:00:03]} Rb2 {[%emt 0:00:01]} 47. Rb6 {[%emt 0:00:01]} Ra2 {[%emt 0:00:03]} 48. Ke4 {[%emt 0:00:03]} 1-0